bitfinex-derivatives/quotes_ETHF0:USTF0_20240826
["timestamp","ask_amount","ask_price","bid_price","bid_amount"]
[1724652545990,1.31,2742.8,2742.7,0.00426494]
[1724652549390,1.67445,2742.8,2742.7,0.00426494]
[1724652560092,1.31,2742.8,2742.7,0.00426494]
[1724652560604,1.67445,2742.8,2742.7,0.00426494]
[1724652561204,1.31,2742.8,2742.7,0.00426494]
[1724652561997,1.67445,2742.8,2742.7,0.00426494]
[1724652564707,1.31,2742.8,2742.7,0.00426494]
[1724652567200,1.67445,2742.8,2742.7,0.00426494]
[1724652567597,1.31,2742.8,2742.7,0.00426494]
[1724652567797,1.67445,2742.8,2742.7,0.00426494]
[1724652570617,15.24953394,2742.8,2742.7,0.00426494]
[1724652570926,18.45733394,2742.8,2742.7,0.00426494]
[1724652573010,4.88225,2742.8,2742.7,0.00426494]
[1724652573213,7.4798,2742.8,2742.7,0.00426494]
[1724652573515,4.5178,2742.8,2742.7,0.00426494]
[1724652576223,4.88225,2742.8,2742.7,0.00426494]
[1724652578109,4.5178,2742.8,2742.7,0.00426494]
[1724652579313,4.88225,2742.8,2742.7,0.00426494]
[1724652580319,4.5178,2742.8,2742.7,0.00426494]
[1724652580906,3.2078,2742.8,2742.7,0.00426494]
[1724652581115,3.2078,2742.8,2742.7,0.42056494]
[1724652581317,3.2078,2742.8,2742.7,0.80966494]
[1724652581624,3.2078,2742.8,2742.7,2.11966494]
[1724652581925,3.2078,2742.8,2742.7,5.76526494]
[1724652582725,3.2078,2742.8,2742.7,4.45526494]
[1724652584130,1.67443,2742.9,2742.7,4.45526494]
[1724652584426,1.67443,2742.9,2742.7,0.80966494]
[1724652585319,3.2078,2743.0,2742.8,4.9556]
[1724652585514,3.2078,2743.0,2742.8,1.31]
[1724652585715,3.2078,2743.0,2742.8,4.9556]
[1724652585932,4.5178,2743.0,2742.8,3.6456]
[1724652586520,4.5178,2743.0,2742.9,4.9556]
[1724652586521,3.2078,2743.0,2742.9,4.9556]
[1724652586827,3.2078,2743.0,2742.9,1.31]
[1724652587025,3.2078,2743.0,2742.9,4.9556]
[1724652588520,3.2078,2743.0,2742.9,1.31]
[1724652588823,3.2078,2743.0,2742.9,4.9556]
[1724652590328,4.5178,2743.0,2742.9,3.6456]
[1724652590823,4.5178,2743.0,2742.7,0.80966494]
[1724652591027,1.699,2742.9,2742.7,0.80966494]
[1724652591537,1.699,2742.9,2742.7,4.45526494]
[1724652592632,1.31,2742.8,2742.7,0.80966494]
[1724652592827,1.67445,2742.8,2742.7,0.80966494]
[1724652593030,1.67445,2742.8,2742.7,4.45526494]
[1724652595023,1.31,2742.8,2742.7,4.45526494]
[1724652595220,2.06344,2742.9,2742.7,4.45526494]
[1724652595434,2.06344,2742.9,2742.7,0.80966494]
[1724652596321,0.36445,2742.8,2742.7,0.80966494]
[1724652596529,2.06344,2742.9,2742.7,0.80966494]
[1724652598338,3.2078,2743.0,2742.7,2.11966494]
[1724652598743,3.2078,2743.0,2742.7,2.48411494]
[1724652599422,3.2078,2743.0,2742.7,2.11966494]
[1724652600338,4.5178,2743.0,2742.7,0.80966494]
[1724652600527,4.88222,2743.0,2742.7,0.80966494]
[1724652602035,0.36444,2742.9,2742.7,0.80966494]
[1724652602533,4.88223,2743.0,2742.7,0.80966494]
[1724652603540,4.5178,2743.0,2742.7,0.80966494]
[1724652603730,3.2078,2743.0,2742.7,2.48412494]
[1724652603933,2.48181,2743.1,2742.9,1.31]
[1724652603934,0.8074,2743.1,2742.9,1.31]
[1724652604638,0.421,2743.1,2742.9,1.31]
[1724652606427,0.36439,2743.3,2743.0,1.31]
[1724652606637,0.3945,2743.4,2743.2,1.31]
[1724652607246,2.07486,2743.5,2743.2,1.31]
[1724652608843,1.31,2743.4,2743.2,1.31]
[1724652610035,0.4005,2743.5,2743.1,0.8056]
[1724652610242,1.31,2743.4,2743.1,0.8056]
[1724652610440,1.31,2743.4,2743.1,1.17]
[1724652611654,1.7105,2743.5,2743.1,1.17]
[1724652611834,1.7105,2743.5,2743.1,0.8056]
[1724652612641,1.31,2743.4,2743.1,0.3978]
[1724652612845,1.31,2743.2,2743.1,0.3978]
[1724652613041,1.31,2743.2,2742.8,2.08175]
[1724652613241,3.61366657,2743.6,2742.9,0.4226]
[1724652613242,2.1287,2743.1,2742.9,0.4226]
[1724652615248,0.8187,2743.1,2742.9,1.7326]
[1724652618259,0.8187,2743.1,2742.9,0.4226]
[1724652618663,0.8187,2743.1,2742.9,1.7326]
[1724652619663,1.18311,2743.1,2742.9,1.7326]
[1724652620065,0.36443,2742.9,2742.7,1.31426494]
[1724652620258,0.36445,2742.8,2742.7,0.00426494]
[1724652620765,1.67445,2742.8,2742.7,0.00426494]
[1724652630576,1.31,2742.8,2742.7,0.00426494]
[1724652630968,1.67444,2742.9,2742.7,0.00426494]
[1724652632475,1.67445,2742.8,2742.7,0.00426494]
[1724652636377,6.23117,2742.8,2742.7,0.00426494]
[1724652637476,5.32005,2742.8,2742.7,0.00426494]
[1724652640578,15.23351991,2742.8,2742.7,0.00426494]
[1724652640786,0.36451,2742.3,2742.0,0.407]
[1724652641171,4.9204,2742.2,2742.0,0.407]
[1724652641775,4.92406892,2742.2,2742.0,0.41145387]
[1724652643877,5.33316892,2742.2,2742.0,0.41145387]
[1724652644278,9.04342619,2742.1,2742.0,0.41145387]
[1724652645483,10.71796619,2742.1,2742.0,0.00445387]
[1724652645782,14.36516619,2742.1,2742.0,0.00445387]
[1724652646287,20.27652619,2742.1,2742.0,0.00445387]
[1724652647071,0.00546657,2741.9,2740.4,4.16277262]
[1724652647279,1.31,2740.8,2740.6,0.78913]
[1724652647481,1.31,2740.8,2740.6,0.4244]
[1724652647785,1.31,2740.8,2740.7,0.36473]
[1724652647972,1.31,2741.1,2740.7,1.67473]
[1724652648177,1.31,2741.1,2740.7,0.0038834]
[1724652648385,1.31,2741.1,2740.7,1.3138834]
[1724652648679,1.31,2741.0,2740.7,1.3138834]
[1724652649187,1.31,2741.0,2740.7,1.6786134]
[1724652649383,1.31,2741.0,2740.7,1.3138834]
[1724652650085,0.36468,2741.1,2740.7,0.0038834]
[1724652650384,0.4003,2741.0,2740.7,0.0038834]
[1724652650990,0.76499,2741.0,2740.7,0.0038834]
[1724652651671,0.3647,2740.9,2740.7,0.0038834]
[1724652651875,0.4003,2741.0,2740.7,0.0038834]
[1724652651876,0.76499,2741.0,2740.7,0.0038834]
[1724652654084,0.36468,2741.1,2740.7,0.3686034]
[1724652654280,0.36467,2741.2,2740.7,0.0038834]
[1724652654585,0.36467,2741.2,2740.7,0.3686034]
[1724652655196,0.36467,2741.1,2740.7,0.0038834]
[1724652655584,0.36469,2741.0,2740.7,0.0038834]
[1724652656094,12.26961466,2741.3,2740.7,0.0038834]
[1724652656095,0.36471,2740.8,2740.7,0.0038834]
[1724652660992,4.01351,2740.8,2740.7,0.0038834]
[1724652661191,25.197958,2740.8,2740.7,0.0038834]
[1724652661497,0.36481,2740.1,2739.8,0.429]
[1724652661791,0.3648,2740.2,2739.8,0.429]
[1724652661994,0.413,2740.4,2739.8,0.429]
[1724652662295,3.2755823,2740.4,2739.8,0.43317711]
[1724652662492,3.6403523,2740.4,2739.9,0.36483]
[1724652662706,0.7813523,2740.4,2740.0,0.4279]
[1724652663385,0.36478,2740.3,2740.0,0.4279]
[1724652663986,0.7813523,2740.4,2740.0,0.4279]
[1724652664388,0.36478,2740.3,2740.0,0.4279]
[1724652665688,0.36479,2740.2,2739.8,0.43317711]
[1724652666294,0.36481,2740.1,2739.8,0.43317711]
[1724652667191,3.15,2740.3,2739.8,0.00417711]
[1724652667398,0.36483,2740.0,2739.8,0.44607711]
[1724652668797,0.36483,2740.0,2739.8,0.86157711]
[1724652669097,3.57263,2739.9,2739.8,0.00417711]
[1724652669283,3.99243,2739.9,2739.8,0.00417711]
[1724652669486,7.64203,2739.9,2739.8,0.00417711]
[1724652669683,8.98052,2739.9,2739.8,0.00417711]
[1724652670103,8.98052,2739.9,2738.9,0.36496]
[1724652670104,16.77310632,2739.9,2738.9,0.36496]
[1724652670394,0.00547665,2739.7,2739.6,0.36487]
[1724652670586,0.00547665,2739.7,2739.1,3.2078]
[1724652670999,0.37033665,2739.7,2739.2,0.36492]
[1724652671185,0.37033665,2739.7,2739.3,0.3649]
[1724652671186,0.4114,2739.6,2739.3,0.3649]
[1724652671986,1.31547665,2739.7,2739.4,1.31]
[1724652672798,1.31547665,2739.7,2739.5,0.4389]
[1724652672987,1.31547665,2739.7,2739.5,0.80378]
[1724652673292,0.00547665,2739.7,2739.6,3.6504]
[1724652673496,0.00547665,2739.7,2739.5,5.76418]
[1724652673688,0.00547665,2739.7,2739.6,0.36487]
[1724652674090,0.00547665,2739.7,2739.6,4.01527]
[1724652674301,0.00547665,2739.7,2739.6,3.6504]
[1724652675497,1.31547665,2739.7,2739.6,3.6504]
[1724652676497,1.68033665,2739.7,2739.2,0.36492]
[1724652676699,1.31,2739.4,2739.2,1.7492]
[1724652676898,1.31,2739.4,2739.2,2.11412]
[1724652677096,1.31,2739.4,2739.2,0.80412]
[1724652677301,0.36487,2739.6,2739.3,0.36491]
[1724652677302,1.31,2739.6,2739.3,0.36491]
[1724652677503,1.31,2739.6,2739.3,1.67491]
[1724652678808,1.31,2739.4,2739.2,0.4392]
[1724652679189,1.7504,2739.4,2739.2,0.4392]
[1724652679603,1.7504,2739.4,2739.2,0.80412]
[1724652680498,2.1153,2739.4,2739.2,0.4392]
[1724652680998,1.31,2739.3,2739.2,0.4392]
[1724652681404,1.67491,2739.3,2739.2,0.4392]
[1724652681605,1.67492,2739.3,2739.1,4.19945229]
[1724652681793,0.4404,2739.4,2739.1,4.19945229]
[1724652681794,1.31,2739.2,2739.1,0.36939229]
[1724652681994,0.00547665,2739.7,2739.2,0.36492]
[1724652681995,1.31,2739.5,2739.2,0.36492]
[1724652682299,1.67489,2739.5,2739.2,0.36492]
[1724652682791,1.67489,2739.5,2739.3,0.4204]
[1724652682994,1.67489,2739.5,2739.4,0.4239]
[1724652683391,1.31,2739.5,2739.1,0.00445229]
[1724652683595,4.19962665,2739.7,2739.1,0.00445229]
[1724652683596,1.67491,2739.4,2739.1,0.42485229]
[1724652683808,1.31,2739.2,2739.1,0.42485229]
[1724652685007,1.31,2739.2,2739.1,0.78979229]
[1724652685509,1.31,2739.4,2739.2,0.36492]
[1724652685709,1.31,2739.4,2739.3,0.4239]
[1724652686204,1.31,2739.5,2739.3,4.4392]
[1724652686393,1.31,2739.4,2739.2,0.36492]
[1724652686598,1.6749,2739.4,2739.2,0.4169]
[1724652686793,1.31,2739.4,2739.2,0.78183]
[1724652688509,1.6749,2739.4,2739.2,0.4169]
[1724652688709,0.4124,2739.3,2739.2,0.4169]
[1724652690510,0.77731,2739.3,2739.2,0.4169]
[1724652691206,0.36493,2739.2,2739.1,0.00445229]
[1724652691412,3.02355,2739.2,2739.1,0.00445229]
[1724652691610,6.67395,2739.2,2739.1,0.00445229]
[1724652692917,11.67395,2739.2,2739.1,0.00445229]
[1724652693100,0.9124,2739.0,2738.3,3.2078]
[1724652693305,0.36503,2738.4,2738.3,3.2078]
[1724652693708,4.0568,2738.4,2738.3,3.2078]
[1724652693913,4.42183,2738.4,2738.3,3.2078]
[1724652694213,4.42183,2738.4,2738.3,3.21186978]
[1724652694214,4.4260053,2738.4,2738.3,3.21186978]
[1724652696210,0.0041753,2738.4,2738.3,3.21186978]
[1724652696714,0.0041753,2738.4,2738.3,3.57691978]
[1724652697104,0.0041753,2738.4,2738.3,7.22891978]
[1724652697303,0.0041753,2738.4,2738.3,12.22891978]
[1724652698603,0.0041753,2738.4,2738.3,12.66501978]
[1724652698809,0.437,2739.3,2739.0,0.36494]
[1724652699011,0.437,2739.3,2739.1,0.4306]
[1724652699012,0.80192,2739.3,2739.1,0.4306]
[1724652699518,0.437,2739.3,2739.1,0.4306]
[1724652699817,0.44005802,2739.3,2738.6,3.2078]
[1724652700016,0.36496,2739.0,2738.7,0.36499]
[1724652700611,0.44005802,2739.3,2738.6,3.2078]
[1724652700811,0.44005802,2739.3,2738.7,0.36499]
[1724652701827,0.91235,2739.1,2738.6,3.2078]
[1724652702119,0.36499,2738.8,2738.5,1.23722]
[1724652702619,0.36499,2738.8,2738.6,0.36501]
[1724652702920,0.36499,2738.8,2738.5,1.23721]
[1724652703119,0.36499,2738.8,2738.6,0.365]
[1724652703320,0.36499,2738.8,2738.5,1.23721]
[1724652703516,0.4297,2739.0,2738.5,0.8722]
[1724652703720,0.36497,2738.9,2738.7,0.36499]
[1724652704521,0.4297,2739.0,2738.8,0.36497]
[1724652705129,0.79465,2739.0,2738.8,0.36497]
[1724652705518,0.4297,2739.0,2738.8,0.36497]
[1724652706927,0.4297,2739.0,2738.9,0.36497]
[1724652707228,0.80497802,2739.3,2739.1,0.36494]
[1724652707424,0.44005802,2739.3,2739.1,0.36494]
[1724652708218,0.00305802,2739.3,2739.2,0.36493]
[1724652709329,0.00305802,2739.3,2738.8,3.2078]
[1724652709729,0.00305802,2739.3,2738.8,3.57277]
[1724652710233,0.36493,2739.2,2738.8,3.57277]
[1724652710419,0.36797802,2739.3,2738.9,0.36496]
[1724652711427,0.36493,2739.2,2738.8,3.57277]
[1724652711622,0.36494,2739.1,2738.7,4.55999]
[1724652711828,0.4103,2739.1,2738.8,0.36497]
[1724652712422,0.36496,2739.0,2738.7,4.55998]
[1724652712826,0.77525,2739.1,2738.8,0.36498]
[1724652713226,0.4103,2739.1,2738.9,0.36496]
[1724652713533,0.77524,2739.1,2738.8,0.36497]
[1724652714937,0.4103,2739.1,2738.5,4.08]
[1724652715242,0.36495,2739.0,2738.8,0.36497]
[1724652715420,0.4103,2739.1,2738.5,0.8722]
[1724652715627,0.4221,2738.9,2738.5,0.4306]
[1724652715830,0.36501,2738.6,2738.5,0.4306]
[1724652716526,4.07246,2738.8,2738.3,0.00406978]
[1724652716527,0.36503,2738.5,2738.3,0.00406978]
[1724652717927,4.01703,2738.4,2738.3,0.00406978]
[1724652718121,4.85713,2738.4,2738.3,0.00406978]
[1724652720920,9.85713,2738.4,2738.3,0.00406978]
[1724652723127,18.88405644,2738.4,2738.3,0.00406978]
[1724652723627,19.79664644,2738.4,2738.3,0.00406978]
[1724652724432,13.88405644,2738.4,2738.3,0.00406978]
[1724652724737,0.8401,2738.4,2738.3,0.00406978]
[1724652725027,16.01313,2738.4,2738.3,0.00406978]
[1724652725433,25.90998693,2738.4,2738.3,0.00406978]
[1724652726025,24.99739693,2738.4,2738.3,0.00406978]
[1724652726222,19.99739693,2738.4,2738.3,0.00406978]
[1724652727438,16.34539693,2738.4,2738.3,0.00406978]
[1724652728531,19.99739693,2738.4,2738.3,0.00406978]
[1724652728734,20.90998693,2738.4,2738.3,0.00406978]
[1724652729122,24.99739693,2738.4,2738.3,0.00406978]
[1724652729623,19.99739693,2738.4,2738.3,0.00406978]
[1724652732034,20.90998693,2738.4,2738.3,0.00406978]
[1724652733436,25.90998693,2738.4,2738.3,0.00406978]
[1724652734134,20.90998693,2738.4,2738.3,0.00406978]
[1724652734337,25.90998693,2738.4,2738.3,0.00406978]
[1724652734540,20.90998693,2738.4,2738.3,0.00406978]
[1724652734743,25.90998693,2738.4,2738.3,0.00406978]
[1724652735040,20.90998693,2738.4,2738.3,0.00406978]
[1724652735642,25.90998693,2738.4,2738.3,0.00406978]
[1724652735940,20.90998693,2738.4,2738.3,0.00406978]
[1724652736238,25.90998693,2738.4,2738.3,0.00406978]
[1724652736427,26.09204788,2738.4,2738.3,0.00406978]
[1724652736835,0.36509,2738.0,2737.6,0.8349]
[1724652737142,3.16,2737.9,2737.6,0.8349]
[1724652737339,3.9397,2737.9,2737.6,0.8349]
[1724652737730,3.2078,2737.7,2737.6,0.00453691]
[1724652738041,3.57293,2737.7,2737.6,0.00453691]
[1724652738241,0.36517,2737.4,2737.1,0.406]
[1724652738441,3.16,2737.2,2737.1,0.406]
[1724652738634,3.16,2737.5,2737.1,0.406]
[1724652738834,3.52516,2737.5,2737.1,0.406]
[1724652739235,3.52822621,2737.5,2737.1,0.40883247]
[1724652739843,3.16306621,2737.5,2737.1,0.40883247]
[1724652740740,3.16306621,2737.5,2737.2,0.36519]
[1724652741749,0.00306621,2737.5,2737.4,0.36517]
[1724652742049,0.00306621,2737.5,2737.4,5.0]
[1724652742234,0.00306621,2737.5,2737.4,8.6528]
[1724652742434,0.00306621,2737.5,2737.4,9.01797]
[1724652742642,0.00306621,2737.5,2737.4,8.6528]
[1724652743842,3.16306621,2737.5,2737.1,0.00283247]
[1724652744043,3.52519,2737.2,2737.1,0.42653247]
[1724652744236,3.16,2737.2,2737.1,0.42653247]
[1724652744437,3.52519,2737.2,2737.1,0.42653247]
[1724652746641,3.52519,2737.2,2737.1,0.00283247]
[1724652747437,0.91598621,2737.5,2737.1,3.65643247]
[1724652747438,3.16306621,2737.5,2737.1,3.65643247]
[1724652747642,3.52822621,2737.5,2737.1,0.00283247]
[1724652748040,3.16306621,2737.5,2737.1,0.00283247]
[1724652748242,3.52822621,2737.5,2737.1,0.00283247]
[1724652748942,0.36517,2737.4,2737.1,0.00283247]
[1724652749344,3.16306621,2737.5,2737.1,0.00283247]
[1724652749644,0.36518,2737.4,2737.1,0.00283247]
[1724652749844,0.77358,2737.4,2737.1,0.00283247]
[1724652750244,0.36517,2737.4,2737.1,0.00283247]
[1724652750632,0.36518,2737.3,2737.1,0.00283247]
[1724652750839,0.36517,2737.4,2737.1,0.00283247]
[1724652751950,0.36518,2737.3,2737.1,0.00283247]
[1724652752740,3.57146621,2737.5,2737.1,0.00283247]
[1724652753041,0.36518,2737.3,2737.1,0.00283247]
[1724652753744,0.36517,2737.4,2737.1,3.65643247]
[1724652753946,3.52822621,2737.5,2737.1,0.00283247]
[1724652754143,0.36517,2737.4,2737.1,0.00283247]
[1724652755242,0.36518,2737.3,2737.1,0.00283247]
[1724652755749,0.36517,2737.4,2737.1,3.65643247]
[1724652755948,0.36517,2737.4,2737.1,0.00283247]
[1724652758442,0.36518,2737.3,2737.1,0.00283247]
[1724652758642,0.36517,2737.4,2737.1,0.00283247]
[1724652759039,0.36518,2737.3,2737.1,0.00283247]
[1724652759239,0.36517,2737.4,2737.1,0.00283247]
[1724652759446,0.36518,2737.3,2737.1,0.00283247]
[1724652759649,3.52519,2737.2,2737.1,0.00283247]
[1724652759950,4.85148,2737.2,2737.1,0.00283247]
[1724652761956,3.16,2737.2,2737.1,3.65643247]
[1724652762151,0.36519,2737.3,2737.1,3.65643247]
[1724652762352,0.36519,2737.2,2737.1,0.00283247]
[1724652762856,0.36518,2737.3,2737.1,3.65643247]
[1724652763053,0.36518,2737.3,2737.1,0.00283247]
[1724652763357,0.80687,2737.4,2737.1,0.00283247]
[1724652763559,0.36518,2737.3,2737.1,0.00283247]
[1724652764055,0.44206621,2737.5,2737.1,0.00283247]
[1724652764355,0.36517,2737.4,2737.1,0.00283247]
[1724652764659,0.36518,2737.3,2737.1,0.00283247]
[1724652764860,0.36519,2737.2,2737.1,0.00283247]
[1724652765068,0.78689,2737.2,2737.1,0.00283247]
[1724652765250,0.78689,2737.2,2737.1,3.65643247]
[1724652766752,0.78689,2737.2,2737.1,0.00283247]
[1724652766753,3.94689,2737.2,2737.1,0.00283247]
[1724652769963,4.85988,2737.2,2737.1,0.00283247]
[1724652770864,0.78689,2737.2,2737.1,3.65643247]
[1724652771553,0.4217,2737.2,2737.1,0.00283247]
[1724652771752,0.44206621,2737.5,2737.1,3.65643247]
[1724652771955,0.4437,2737.4,2737.1,0.00283247]
[1724652772259,0.36519,2737.3,2737.1,0.00283247]
[1724652772457,0.36519,2737.2,2737.1,0.00283247]
[1724652772663,0.36519,2737.3,2737.1,0.00283247]
[1724652773167,0.4437,2737.4,2737.1,0.00283247]
[1724652773168,0.80887,2737.4,2737.1,3.65643247]
[1724652773364,0.36518,2737.3,2737.1,0.00283247]
[1724652773868,0.36518,2737.3,2737.1,3.65643247]
[1724652774166,0.36519,2737.3,2737.1,0.00283247]
[1724652776757,0.36519,2737.2,2737.1,0.00283247]
[1724652777870,0.36519,2737.3,2737.1,3.65643247]
[1724652778062,0.36519,2737.3,2737.1,0.00283247]
[1724652778459,0.36519,2737.2,2737.1,0.00283247]
[1724652778864,0.36519,2737.2,2737.1,3.65643247]
[1724652780071,0.36519,2737.2,2737.1,0.00283247]
[1724652785672,1.27818,2737.2,2737.1,0.00283247]
[1724652786265,4.93178,2737.2,2737.1,0.00283247]
[1724652786681,1.27818,2737.2,2737.1,0.00283247]
[1724652786966,0.36519,2737.2,2737.1,0.00283247]
[1724652787173,4.01879,2737.2,2737.1,0.00283247]
[1724652789179,0.36519,2737.2,2737.1,0.00283247]
[1724652792080,1.27818,2737.2,2737.1,0.00283247]
[1724652793676,1.27818,2737.2,2736.1,0.95512234]
[1724652793677,0.91302,2737.1,2736.1,0.95512234]
[1724652793866,0.91302,2737.1,2736.0,0.4282]
[1724652793867,0.36534,2736.1,2736.0,0.4282]
[1724652794371,0.36536,2736.0,2735.8,3.2078]
[1724652794565,0.80716,2736.0,2735.8,3.636]
[1724652794763,0.4418,2736.0,2735.8,3.63866483]
[1724652794968,0.4383,2736.1,2735.8,3.63866483]
[1724652795268,3.16,2736.2,2735.9,0.4319]
[1724652795670,9.35644953,2736.1,2735.9,0.4319]
[1724652797074,3.96711,2736.4,2735.9,0.4319]
[1724652797280,3.16,2736.4,2736.1,0.36534]
[1724652797468,3.16,2736.4,2735.9,0.4319]
[1724652797881,3.16,2736.4,2736.0,0.36535]
[1724652798173,3.5253,2736.4,2735.9,0.4319]
[1724652798476,3.5253,2736.4,2735.9,0.79726]
[1724652799175,3.16,2736.4,2735.9,0.4319]
[1724652799480,3.16,2736.4,2736.0,0.36535]
[1724652799682,0.36529,2736.5,2736.1,3.6544]
[1724652799977,0.36529,2736.5,2736.0,4.01975]
[1724652800181,0.36529,2736.5,2736.0,3.6544]
[1724652800475,0.4225,2736.7,2735.9,0.4319]
[1724652800667,0.4225,2736.7,2736.1,0.36533]
[1724652801069,0.78776,2736.7,2736.2,0.4307]
[1724652801270,0.36526,2736.7,2736.3,0.4462]
[1724652801676,0.36527,2736.7,2736.3,0.4462]
[1724652801884,0.36528,2736.6,2736.3,0.4462]
[1724652802382,0.36528,2736.6,2736.3,4.1006]
[1724652802679,0.36529,2736.5,2736.3,4.1006]
[1724652802982,0.3653,2736.4,2736.3,0.4462]
[1724652803281,0.7815,2736.4,2736.3,0.4462]
[1724652805592,0.4162,2736.4,2736.3,0.4462]
[1724652805778,0.7815,2736.4,2736.3,0.4462]
[1724652805973,3.52529,2736.5,2736.3,0.4462]
[1724652806181,0.36528,2736.6,2736.3,0.4462]
[1724652807084,0.36529,2736.5,2736.3,4.1006]
[1724652807284,0.36529,2736.5,2736.3,0.4462]
[1724652807485,0.36529,2736.5,2736.4,3.6544]
[1724652809683,0.36528,2736.6,2736.4,3.6544]
[1724652809883,0.36528,2736.6,2736.3,0.4462]
[1724652810084,0.36528,2736.6,2736.3,4.1006]
[1724652810486,0.36529,2736.5,2736.3,4.1006]
[1724652810680,0.36529,2736.5,2736.3,0.4462]
[1724652810885,0.36529,2736.5,2736.4,3.6544]
[1724652812879,0.36529,2736.5,2736.3,0.4462]
[1724652815598,0.4428,2736.7,2736.3,0.4462]
[1724652815797,0.36529,2736.5,2736.3,0.4462]
[1724652816802,0.4428,2736.7,2736.3,0.4462]
[1724652817494,0.3653,2736.4,2736.3,0.4462]
[1724652817796,0.36531,2736.3,2736.2,0.4307]
[1724652818896,0.36531,2736.4,2736.2,0.4307]
[1724652819090,3.52529,2736.5,2736.3,0.4319]
[1724652821393,0.36531,2736.3,2736.2,0.4307]
[1724652821600,3.16,2736.5,2735.9,0.4424]
[1724652821906,0.36534,2736.1,2735.9,0.4424]
[1724652822295,0.36535,2736.0,2735.9,0.4424]
[1724652822491,0.36535,2736.0,2735.9,4.0976]
[1724652822691,0.36535,2736.0,2735.9,0.4424]
[1724652823603,0.36537,2735.9,2735.8,0.00266483]
[1724652824002,0.36537,2735.9,2735.8,3.65786483]
[1724652824501,0.36537,2735.9,2735.8,0.00266483]
[1724652826302,0.36537,2735.9,2735.8,3.65786483]
[1724652827505,0.36537,2735.9,2735.8,0.00266483]
[1724652832807,0.36536,2736.0,2735.8,0.00266483]
[1724652833407,3.16,2736.5,2735.9,3.6552]
[1724652833607,0.36532,2736.3,2736.0,0.4185]
[1724652834104,0.36532,2736.3,2736.1,0.4425]
[1724652834902,0.36533,2736.2,2736.1,0.4425]
[1724652836705,4.94215,2736.5,2735.8,0.36804483]
[1724652836706,0.9133,2736.3,2735.8,0.00266483]
[1724652836912,0.4387,2736.1,2735.8,0.00266483]
[1724652837110,0.36535,2736.0,2735.8,0.00266483]
[1724652837411,0.36537,2735.9,2735.8,0.00266483]
[1724652844112,0.91325,2736.5,2735.8,0.00266483]
[1724652844113,4.187,2736.6,2735.8,3.65786483]
[1724652844311,0.414,2736.4,2735.8,0.00266483]
[1724652844617,0.36536,2736.0,2735.8,0.00266483]
[1724652844803,0.36535,2736.1,2735.8,0.36804483]
[1724652845409,0.36534,2736.2,2735.9,0.36536]
[1724652845618,0.414,2736.4,2736.0,0.4372]
[1724652845805,0.77931,2736.4,2736.1,0.4422]
[1724652846420,0.36531,2736.3,2736.1,0.4422]
[1724652846913,0.414,2736.4,2736.1,0.4422]
[1724652846914,0.77931,2736.4,2736.1,0.4422]
[1724652847422,0.414,2736.4,2736.1,0.4422]
[1724652847608,0.414,2736.4,2736.1,0.80753]
[1724652848014,0.414,2736.4,2736.1,0.4422]
[1724652848317,0.7793,2736.4,2736.1,0.4422]
[1724652848619,0.414,2736.4,2736.1,0.80754]
[1724652848914,0.7793,2736.4,2736.1,0.4422]
[1724652849116,0.414,2736.4,2736.1,0.80754]
[1724652849413,0.414,2736.4,2736.1,0.4422]
[1724652849614,0.7793,2736.4,2736.1,0.4422]
[1724652850321,0.36532,2736.3,2736.1,0.4422]
[1724652850812,0.414,2736.4,2736.1,0.4422]
[1724652850813,0.77931,2736.4,2736.1,0.4422]
[1724652851022,0.414,2736.4,2736.1,0.4422]
[1724652851208,0.77931,2736.4,2736.1,0.4422]
[1724652852816,0.77931,2736.4,2736.1,0.80753]
[1724652852817,0.414,2736.4,2736.1,0.80753]
[1724652854117,1.32,2736.2,2736.1,0.4422]
[1724652854422,1.32,2736.2,2736.1,0.80754]
[1724652854612,1.32,2736.2,2736.1,4.46194]
[1724652855513,1.32,2736.2,2736.1,4.0966]
[1724652856413,1.32,2736.2,2736.1,4.46194]
[1724652857014,0.36526,2736.7,2736.1,10.4166]
[1724652857316,1.32,2736.5,2736.3,0.3653]
[1724652857512,1.32,2736.5,2736.4,0.7951]
[1724652857712,1.32,2736.5,2736.4,4.4495]
[1724652858519,1.32,2736.5,2736.4,0.7951]
[1724652858719,1.32,2736.5,2736.4,4.4495]
[1724652860125,1.32,2736.5,2736.4,4.0842]
[1724652860418,1.32,2736.5,2736.4,4.4495]
[1724652861626,1.68527,2736.6,2736.4,4.0842]
[1724652861829,1.68527,2736.6,2736.5,3.6544]
[1724652862133,1.68527,2736.6,2736.5,4.0795]
[1724652862517,1.68527,2736.6,2736.0,0.36535]
[1724652862518,0.36531,2736.3,2736.0,0.36535]
[1724652862821,1.68531,2736.3,2736.2,0.4259]
[1724652863827,1.68531,2736.3,2736.2,4.0803]
[1724652865820,1.68528,2736.6,2736.4,0.36529]
[1724652867023,0.00547665,2736.9,2736.5,8.6281]
[1724652867225,0.00547665,2736.9,2736.7,1.68525]
[1724652867729,0.00547665,2736.9,2736.7,5.33885]
[1724652869033,0.00547665,2736.9,2736.6,0.4346]
[1724652869034,0.36526,2736.7,2736.6,0.4346]
[1724652871926,0.00547665,2736.9,2736.6,4.089]
[1724652872128,0.37071665,2736.9,2736.7,0.4371]
[1724652872526,0.37071665,2736.9,2736.6,0.79986]
[1724652872727,0.37071665,2736.9,2736.6,0.4346]
[1724652872728,0.00547665,2736.9,2736.6,0.4346]
[1724652872928,0.36526,2736.7,2736.6,0.4346]
[1724652873328,0.36526,2736.7,2736.6,4.089]
[1724652873525,0.00547665,2736.9,2736.3,4.5603]
[1724652873725,0.36527,2736.7,2736.4,0.805]
[1724652873926,0.00547665,2736.9,2736.4,0.805]